fUSD/lending_fUSD_20260319
["ID","MTS","AMOUNT","RATE_DAILY","PERIOD"]
[408586769,1773905432410,-151.0,0.0001,2]
[408586770,1773905432419,-151.0,0.0001,2]
[408586771,1773905432428,-151.0,0.0001,2]
[408586772,1773905432438,-151.0,0.0001,2]
[408586773,1773905432447,-151.0,0.0001,2]
[408586774,1773905432457,-151.0,0.0001,2]
[408586775,1773905432467,-151.0,0.0001,2]
[408586776,1773905432476,-151.0,0.0001,2]
[408586777,1773905432485,-151.0,0.0001,2]
[408586778,1773905432495,-151.0,0.0001,2]
[408586779,1773905432504,-151.0,0.0001,2]
[408586780,1773905432513,-151.0,0.0001,2]
[408586781,1773905432523,-151.0,0.0001,2]
[408586782,1773905432536,-151.0,0.0001,2]
[408586783,1773905432546,-151.0,0.0001,2]
[408586784,1773905432556,-151.0,0.0001,2]
[408586785,1773905432565,-151.0,0.0001,2]
[408586786,1773905432577,-151.0,0.0001,2]
[408586787,1773905432588,-151.0,0.0001,2]
[408586788,1773905432600,-151.0,0.0001,2]
[408586789,1773905432612,-311.75727408,0.0001,2]
[408586790,1773905432622,-8103.64536798,0.0001,2]
[408586791,1773905432631,-500.0,0.0001,2]
[408586792,1773905432640,-1249.47,0.00010089,2]
[408586793,1773905432650,-1600.0,0.00010089,2]
[408586794,1773905432659,-875.44189071,0.00010171,2]
[408586795,1773905432668,-1000.0,0.00010171,2]
[408586796,1773905432677,-501.23260465,0.00010171,2]
[408586797,1773905432686,-395.38029123,0.00010207,2]
[408586798,1773905432695,-500.0,0.00010274,2]
[408586799,1773905432704,-1249.47,0.00010363,2]
[408586800,1773905432714,-250.0,0.00010449,2]
[408586801,1773905432723,-1680.0,0.00010449,2]
[408586802,1773905432732,-420.0,0.00010449,2]
[408586803,1773905432743,-420.0,0.00010449,2]
[408586804,1773905432752,-5000.0,0.00010449,2]
[408586805,1773905432761,-9999.99,0.00010475,2]
[408586806,1773905432771,-10379.68,0.00010475,2]
[408586807,1773905432780,-3807.71,0.00010475,2]
[408586808,1773905432789,-250.0,0.00010483,2]
[408586809,1773905432799,-193.0,0.00010483,2]
[408586810,1773905432808,-255.0,0.00010494,2]
[408586811,1773905432817,-500.0,0.00010548,2]
[408586812,1773905432826,-1249.47,0.00010637,2]
[408586813,1773905432835,-269.83423346,0.000107,2]
[408586814,1773905432843,-1500.0,0.00010718,2]
[408586815,1773905432852,-1033.77372293,0.000108,2]
[408586816,1773905432861,-500.0,0.00010822,2]
[408586817,1773905432870,-7361.80400995,0.000109,2]
[408586818,1773905432879,-7361.80400992,0.000109,2]
[408586819,1773905432888,-1249.47,0.00010911,2]
[408586820,1773905432897,-500.0,0.00010958,2]
[408586821,1773905432907,-500.0,0.00010958,3]
[408586822,1773905432916,-500.0,0.00010958,4]
[408586823,1773905432925,-500.0,0.00010958,5]
[408586824,1773905432934,-500.0,0.00010958,6]
[408586825,1773905432943,-500.0,0.00010958,7]
[408586826,1773905432952,-500.0,0.00010958,8]
[408586827,1773905432962,-500.0,0.00010958,9]
[408586828,1773905432981,-150.0,0.00010959,2]
[408586829,1773905432992,-150.0,0.00010959,2]
[408586830,1773905433002,-500.0,0.00010959,2]
[408586831,1773905433012,-500.0,0.00010959,2]
[408586832,1773905433022,-500.0,0.00010959,2]
[408586833,1773905433032,-281.02190875,0.00010959,2]
[408586834,1773905433042,-9478.41325372,0.00011,2]
[408586835,1773905433051,-500.0,0.00011096,2]
[408586836,1773905433061,-23733.04613424,0.00011099,2]
[408586837,1773905433071,-23733.04613424,0.00011099,2]
[408586838,1773905433080,-23733.04613424,0.00011099,2]
[408586839,1773905433090,-31218.95923928,0.00011099,2]
[408586840,1773905433099,-31218.95923924,0.00011099,2]
[408586841,1773905433109,-31218.95923924,0.00011099,2]
[408586842,1773905433119,-31218.95923924,0.00011099,2]
[408586843,1773905433128,-600.0,0.00011124,2]
[408586844,1773905433138,-342.78,0.00011124,2]
[408586845,1773905433147,-1249.47,0.00011185,2]
[408586846,1773905433157,-1600.0,0.0001121,2]
[408586847,1773905433167,-163.68,0.00011233,2]
[408586848,1773905433176,-2000.0,0.00011266,2]
[408586849,1773905433186,-7361.80400992,0.0001129,2]
[408586850,1773905433196,-31218.95923924,0.00011313,2]
[408586851,1773905433205,-500.0,0.0001137,2]
[408586852,1773905433215,-1249.47,0.00011459,2]
[408586853,1773905433224,-2351.0,0.00011494,2]
[408586854,1773905433235,-587.0,0.00011494,2]
[408586855,1773905433244,-587.0,0.00011494,2]
[408586856,1773905433254,-433.0,0.00011543,2]
[408586857,1773905433264,-395.86,0.00011569,2]
[408586858,1773905433273,-23733.04613424,0.00011598,2]
[408586859,1773905433282,-1175.98,0.000116,2]
[408586860,1773905433292,-293.99,0.000116,2]
[408586861,1773905433301,-293.99,0.000116,2]
[408586862,1773905433311,-293.99,0.000116,2]
[408586863,1773905433320,-293.99,0.000116,2]
[408586864,1773905433329,-2356.34,0.000116,2]
[408586865,1773905433339,-1504.73,0.000116,2]
[408586866,1773905433348,-240.61,0.000116,2]
[408586867,1773905433356,-500.0,0.00011644,2]
[408586868,1773905433366,-1249.47,0.00011733,2]
[408586869,1773905433375,-31218.95923924,0.00011781,2]
[408586870,1773905433384,-2500.0,0.00011814,2]
[408586871,1773905433394,-333.0,0.00011888,2]
[408586872,1773905433404,-1558.05632633,0.000119,2]
[408586873,1773905433414,-500.0,0.00011918,2]
[408586874,1773905433423,-1249.47,0.00012007,2]
[408586875,1773905433432,-16236.79,0.00012055,2]
[408586876,1773905433441,-174.0195981,0.00012105,2]
[408586877,1773905433451,-500.0,0.00012192,2]
[408586878,1773905433461,-7361.80400992,0.00012214,2]
[408586879,1773905433471,-31218.95923924,0.00012249,2]
[408586880,1773905433481,-1249.47,0.00012281,2]
[408586881,1773905433492,-23733.04613424,0.00012317,2]
[408586882,1773905433502,-1600.0,0.00012331,2]
[408586883,1773905433512,-2000.0,0.00012362,2]
[408586884,1773905433523,-500.0,0.00012466,2]
[408586885,1773905433535,-309.37821434,0.000125,2]
[408586886,1773905433546,-1249.58954918,0.00012555,2]
[408586887,1773905433556,-3292.0,0.00012643,2]
[408586888,1773905433565,-823.0,0.00012643,2]
[408586889,1773905433575,-823.0,0.00012643,2]
[408586890,1773905433584,-736.0,0.00012698,2]
[408586891,1773905433595,-31218.95923924,0.00012717,2]
[408586892,1773905433604,-473.0935161,0.0001274,2]
[408586893,1773905433614,-160.0,0.00012775,2]
[408586894,1773905433624,-667.383875,0.00012775,2]
[408586895,1773905433633,-1174.767751,0.00012775,2]
[408586896,1773905433643,-8882.6885148,0.00012829,2]
[408586897,1773905433659,-250.0,0.00012829,2]
[408586898,1773905433669,-250.0,0.00012829,2]
[408586899,1773905433678,-250.0,0.00012829,2]
[408586900,1773905433688,-250.0,0.00012829,2]
[408586901,1773905433697,-250.0,0.00012829,2]
[408586902,1773905433707,-250.0,0.00012829,2]
[408586903,1773905433716,-250.0,0.00012829,2]
[408586904,1773905433726,-250.0,0.00012829,2]
[408586905,1773905433735,-250.0,0.00012829,2]
[408586906,1773905433744,-250.0,0.00012829,2]
[408586907,1773905433754,-250.0,0.00012829,2]
[408586908,1773905433764,-250.0,0.00012829,2]
[408586909,1773905433773,-373.8483694,0.00012829,2]
[408586910,1773905433782,-250.0,0.00012829,2]
[408586911,1773905433792,-295.82407261,0.00012829,2]
[408586912,1773905433802,-500.0,0.00012829,2]
[408586913,1773905433811,-9211.34798985,0.00012884,2]
[408586914,1773905433820,-333.0,0.00012888,2]
[408586915,1773905433830,-500.0,0.00012904,2]
[408586916,1773905433840,-367.831214,0.00012921,2]
[408586917,1773905433850,-198.872475,0.00012921,2]
[408586918,1773905433860,-160.0,0.00012921,2]
[408586919,1773905433870,-226.531195,0.00012921,2]
[408586920,1773905433879,-293.062391,0.00012921,2]
[408586921,1773905433889,-9552.16786547,0.00012939,2]
[408586922,1773905433899,-9905.5980765,0.00012994,2]
[408586923,1773905433908,-5641.13925074,0.00013,2]
[408586924,1773905433918,-14223.38533073,0.00013,15]
[408586925,1773905433927,-442.29976081,0.00013,2]
[408586926,1773905433937,-23733.04613424,0.00013035,2]
[408586927,1773905433947,-10272.10520533,0.00013049,2]
[408586928,1773905433957,-3169.92326334,0.0001305,2]
[408586929,1773905433966,-10652.17309792,0.00013104,2]
[408586930,1773905433977,-7361.80400992,0.00013138,2]
[408586931,1773905433988,-11046.30350255,0.00013159,2]
[408586932,1773905433998,-31218.95923924,0.00013185,2]
[408586933,1773905434007,-11455.01673214,0.00013214,2]
[408586934,1773905434017,-11878.85235123,0.00013269,2]
[408586935,1773905434028,-12318.36988823,0.00013324,2]
[408586936,1773905434038,-501.0,0.00013333,2]
[408586937,1773905434047,-12774.14957409,0.00013379,2]
[408586938,1773905434056,-160.0,0.0001338,2]
[408586939,1773905434066,-163.805746,0.0001338,2]
[408586940,1773905434075,-167.611492,0.0001338,2]
[408586941,1773905434085,-406.065148,0.00013421,2]
[408586942,1773905434094,-194.486338,0.00013421,2]
[408586943,1773905434104,-237.954396,0.00013424,2]
[408586944,1773905434114,-3240.0,0.00013425,2]
[408586945,1773905434124,-367.044851,0.00013426,2]
[408586946,1773905434134,-3343.02995258,0.00013434,2]
[408586947,1773905434144,-1600.0,0.00013452,2]
[408586948,1773905434155,-151.0,0.00013456,2]
[408586949,1773905434164,-151.0,0.00013456,2]
[408586950,1773905434174,-151.0,0.00013456,2]
[408586951,1773905434184,-151.0,0.00013456,2]
[408586952,1773905434193,-151.0,0.00013456,2]
[408586953,1773905434203,-151.0,0.00013456,2]
[408586954,1773905434212,-151.0,0.00013456,2]
[408586955,1773905434222,-225.91421318,0.00013456,2]
[408586956,1773905434232,-586.0194,0.00013595,2]
[408586957,1773905434242,-1062.0,0.000136,2]
[408586958,1773905434251,-31218.95923924,0.00013653,2]
[408586959,1773905434261,-500.0,0.00013673,2]
[408586960,1773905434270,-500.0,0.00013673,2]
[408586961,1773905434280,-500.0,0.00013673,2]
[408586962,1773905434290,-500.70998659,0.00013673,2]
[408586963,1773905434300,-500.0,0.00013673,2]
[408586964,1773905434309,-500.0,0.00013673,2]
[408586965,1773905434319,-500.0,0.00013673,2]
[408586966,1773905434330,-503.88715955,0.00013673,2]
[408586967,1773905434340,-690.73970436,0.00013685,2]
[408586968,1773905434351,-150.0,0.00013695,2]
[408586969,1773905434361,-500.0,0.00013695,2]
[408586970,1773905434370,-172.33361758,0.00013695,2]
[408586971,1773905434379,-500.0,0.00013695,2]
[408586972,1773905434388,-500.0,0.00013695,2]
[408586973,1773905434399,-461.65354003,0.00013695,2]
[408586974,1773905434408,-500.0,0.00013695,2]
[408586975,1773905434418,-150.0,0.00013695,2]
[408586976,1773905434427,-150.0,0.00013695,2]
[408586977,1773905434437,-500.0,0.00013695,2]
[408586978,1773905434447,-150.0,0.00013695,2]
[408586979,1773905434457,-150.0,0.00013695,2]
[408586980,1773905434466,-190.77647721,0.00013695,2]
[408586981,1773905434475,-150.0,0.00013695,2]
[408586982,1773905434485,-239.07414574,0.00013695,2]
[408586983,1773905434494,-150.94227271,0.00013695,2]
[408586984,1773905434504,-500.0,0.00013695,2]
[408586985,1773905434513,-500.0,0.00013695,2]
[408586986,1773905434523,-227.30575448,0.00013695,2]
[408586987,1773905434536,-500.0,0.00013695,2]
[408586988,1773905434545,-500.0,0.00013695,2]
[408586989,1773905434555,-500.0,0.00013695,2]
[408586990,1773905434564,-500.0,0.00013695,2]
[408586991,1773905434575,-500.0,0.00013695,2]
[408586992,1773905434585,-500.0,0.00013695,2]
[408586993,1773905434594,-500.0,0.00013695,2]
[408586994,1773905434605,-500.0,0.00013695,2]
[408586995,1773905434615,-500.0,0.00013695,2]
[408586996,1773905434624,-500.0,0.00013695,2]
[408586997,1773905434633,-520.81453038,0.00013695,2]
[408586998,1773905434642,-500.0,0.00013695,2]
[408586999,1773905434652,-500.0,0.00013695,2]
[408587000,1773905434661,-500.0,0.00013695,2]
[408587001,1773905434671,-500.0,0.00013695,2]
[408587002,1773905434680,-500.0,0.00013695,2]
[408587003,1773905434689,-500.0,0.00013695,2]
[408587004,1773905434698,-500.0,0.00013695,2]
[408587005,1773905434707,-500.0,0.00013695,2]
[408587006,1773905434717,-214.94352647,0.00013695,2]
[408587007,1773905434726,-500.0,0.00013695,2]
[408587008,1773905434735,-500.0,0.00013695,2]
[408587009,1773905434744,-500.0,0.00013695,2]
[408587010,1773905434754,-500.0,0.00013695,2]
[408587011,1773905434763,-500.0,0.00013695,2]
[408587012,1773905434773,-500.0,0.00013695,2]
[408587013,1773905434783,-500.0,0.00013695,2]
[408587014,1773905434792,-500.0,0.00013695,2]
[408587015,1773905434802,-500.0,0.00013695,2]
[408587016,1773905434812,-500.0,0.00013695,2]
[408587017,1773905434822,-500.0,0.00013695,2]
[408587018,1773905434832,-500.0,0.00013695,2]
[408587019,1773905434843,-500.0,0.00013695,2]
[408587020,1773905434854,-500.0,0.00013695,2]
[408587021,1773905434864,-500.0,0.00013695,2]
[408587022,1773905434873,-500.0,0.00013695,2]
[408587023,1773905434883,-500.0,0.00013695,2]
[408587024,1773905434892,-500.0,0.00013695,2]
[408587025,1773905434903,-255.16033753,0.00013695,2]
[408587026,1773905434912,-500.0,0.00013695,2]
[408587027,1773905434921,-500.0,0.00013695,2]
[408587028,1773905434930,-623.58090901,0.00013695,2]
[408587029,1773905434939,-500.0,0.00013695,2]
[408587030,1773905434949,-500.0,0.00013695,2]
[408587031,1773905434959,-500.0,0.00013695,2]
[408587032,1773905434968,-500.0,0.00013695,2]
[408587033,1773905434977,-500.0,0.00013695,2]
[408587034,1773905434987,-500.0,0.00013695,2]
[408587035,1773905434996,-500.0,0.00013695,2]
[408587036,1773905435006,-500.0,0.00013695,2]
[408587037,1773905435015,-500.0,0.00013695,2]
[408587038,1773905435025,-500.0,0.00013695,2]
[408587039,1773905435034,-500.0,0.00013695,2]
[408587040,1773905435043,-500.0,0.00013695,2]
[408587041,1773905435053,-500.0,0.00013695,2]
[408587042,1773905435062,-500.0,0.00013695,2]
[408587043,1773905435072,-500.0,0.00013695,2]
[408587044,1773905435081,-500.0,0.00013695,2]
[408587045,1773905435091,-500.0,0.00013695,2]
[408587046,1773905435101,-364.3001579,0.00013695,2]
[408587047,1773905435111,-500.0,0.00013695,2]
[408587048,1773905435121,-261.00219026,0.00013695,2]
[408587049,1773905435131,-500.0,0.00013695,2]
[408587050,1773905435140,-435.0,0.00013695,2]
[408587051,1773905435150,-257.5653502,0.00013695,2]
[408587052,1773905435159,-435.0,0.00013695,2]
[408587053,1773905435170,-435.0,0.00013695,2]
[408587054,1773905435179,-435.0,0.00013695,2]
[408587055,1773905435188,-435.0,0.00013695,2]
[408587056,1773905435197,-435.0,0.00013695,2]
[408587057,1773905435207,-435.0,0.00013695,2]
[408587058,1773905435216,-435.0,0.00013695,2]
[408587059,1773905435226,-435.0,0.00013695,2]
[408587060,1773905435235,-435.0,0.00013695,2]
[408587061,1773905435244,-435.0,0.00013695,2]
[408587062,1773905435253,-435.0,0.00013695,2]
[408587063,1773905435263,-435.0,0.00013695,2]
[408587064,1773905435272,-435.0,0.00013695,2]
[408587065,1773905435281,-435.0,0.00013695,2]
[408587066,1773905435290,-435.0,0.00013695,2]
[408587067,1773905435302,-435.0,0.00013695,2]
[408587068,1773905435311,-435.0,0.00013695,2]
[408587069,1773905435321,-435.0,0.00013695,2]
[408587070,1773905435330,-435.0,0.00013695,2]
[408587071,1773905435339,-435.0,0.00013695,2]
[408587072,1773905435348,-435.0,0.00013695,2]
[408587073,1773905435357,-435.0,0.00013695,2]
[408587074,1773905435367,-445.0,0.00013695,2]
[408587075,1773905435376,-500.0,0.00013695,2]
[408587076,1773905435385,-500.0,0.00013695,2]
[408587077,1773905435394,-500.0,0.00013695,2]
[408587078,1773905435405,-500.0,0.00013695,2]
[408587079,1773905435415,-500.0,0.00013695,2]
[408587080,1773905435424,-500.0,0.00013695,2]
[408587081,1773905435434,-500.0,0.00013695,2]
[408587082,1773905435444,-500.0,0.00013695,2]
[408587083,1773905435453,-481.94161916,0.00013695,2]
[408587084,1773905435463,-500.0,0.00013695,2]
[408587085,1773905435472,-500.0,0.00013695,2]
[408587086,1773905435482,-500.0,0.00013695,2]
[408587087,1773905435491,-500.0,0.00013695,2]
[408587088,1773905435500,-500.0,0.00013695,2]
[408587089,1773905435510,-500.0,0.00013695,2]
[408587090,1773905435519,-500.0,0.00013695,2]
[408587091,1773905435529,-500.0,0.00013695,2]
[408587092,1773905435542,-500.0,0.00013695,2]
[408587093,1773905435555,-206.79155437,0.00013695,2]
[408587094,1773905435565,-500.0,0.00013695,2]
[408587095,1773905435574,-500.0,0.00013695,2]
[408587096,1773905435583,-500.0,0.00013695,2]
[408587097,1773905435592,-500.0,0.00013695,2]
[408587098,1773905435602,-500.0,0.00013695,2]
[408587099,1773905435613,-150.75759761,0.00013695,2]
[408587100,1773905435624,-500.0,0.00013695,2]
[408587101,1773905435633,-500.0,0.00013695,2]
[408587102,1773905435642,-500.0,0.00013695,2]
[408587103,1773905435652,-500.0,0.00013695,2]
[408587104,1773905435662,-500.0,0.00013695,2]
[408587105,1773905435671,-500.0,0.00013695,2]
[408587106,1773905435681,-500.0,0.00013695,2]
[408587107,1773905435690,-500.0,0.00013695,2]
[408587108,1773905435700,-500.0,0.00013695,2]
[408587109,1773905435709,-500.0,0.00013695,2]
[408587110,1773905435719,-500.0,0.00013695,2]
[408587111,1773905435728,-500.0,0.00013695,2]
[408587112,1773905435738,-320.05942927,0.00013695,2]
[408587113,1773905435747,-500.0,0.00013695,2]
[408587114,1773905435756,-500.0,0.00013695,2]
[408587115,1773905435765,-500.0,0.00013695,2]
[408587116,1773905435774,-451.64334977,0.00013695,2]
[408587117,1773905435783,-150.0,0.00013695,2]
[408587118,1773905435792,-500.0,0.00013695,2]
[408587119,1773905435802,-500.0,0.00013695,2]
[408587120,1773905435811,-500.0,0.00013695,2]
[408587121,1773905435820,-500.0,0.00013695,2]
[408587122,1773905435830,-500.0,0.00013695,2]
[408587123,1773905435839,-500.0,0.00013695,2]
[408587124,1773905435849,-500.0,0.00013695,2]
[408587125,1773905435858,-500.0,0.00013695,2]
[408587126,1773905435867,-500.0,0.00013695,2]
[408587127,1773905435877,-500.0,0.00013695,2]
[408587128,1773905435886,-500.0,0.00013695,2]
[408587129,1773905435895,-500.0,0.00013695,2]
[408587130,1773905435906,-500.0,0.00013695,2]
[408587131,1773905435915,-500.0,0.00013695,2]
[408587132,1773905435924,-500.0,0.00013695,2]
[408587133,1773905435933,-500.0,0.00013695,2]
[408587134,1773905435944,-500.0,0.00013695,2]
[408587135,1773905435953,-484.38346012,0.00013695,2]
[408587136,1773905435964,-500.0,0.00013695,2]
[408587137,1773905435973,-238.49988002,0.00013695,2]
[408587138,1773905435983,-150.0,0.00013695,2]
[408587139,1773905435992,-909.0,0.00013695,2]
[408587140,1773905436001,-909.0,0.00013695,2]
[408587141,1773905436010,-909.0,0.00013695,2]
[408587142,1773905436020,-909.0,0.00013695,2]
[408587143,1773905436029,-909.0,0.00013695,2]
[408587144,1773905436038,-909.0,0.00013695,2]
[408587145,1773905436048,-909.0,0.00013695,2]
[408587146,1773905436058,-909.0,0.00013695,2]
[408587147,1773905436067,-909.0,0.00013695,2]
[408587148,1773905436076,-909.0,0.00013695,2]
[408587149,1773905436085,-909.0,0.00013695,2]
[408587150,1773905436095,-909.0,0.00013695,2]
[408587151,1773905436104,-909.0,0.00013695,2]
[408587152,1773905436114,-909.0,0.00013695,2]
[408587153,1773905436123,-909.0,0.00013695,2]
[408587154,1773905436133,-909.0,0.00013695,2]
[408587155,1773905436143,-909.0,0.00013695,2]
[408587156,1773905436154,-909.0,0.00013695,2]
[408587157,1773905436164,-909.0,0.00013695,2]
[408587158,1773905436174,-909.0,0.00013695,2]
[408587159,1773905436183,-909.0,0.00013695,2]
[408587160,1773905436192,-909.0,0.00013695,2]
[408587161,1773905436202,-909.0,0.00013695,2]
[408587162,1773905436212,-910.07406063,0.00013695,2]
[408587163,1773905436222,-500.0,0.00013698,2]
[408587164,1773905436445,-500.0,0.00013698,2]
[408587165,1773905436456,-500.0,0.00013698,2]
[408587166,1773905436465,-500.0,0.00013698,2]
[408587167,1773905436476,-500.0,0.00013698,2]
[408587168,1773905436485,-500.0,0.00013698,2]
[408587169,1773905436495,-500.0,0.00013698,2]
[408587170,1773905436504,-500.0,0.00013698,2]
[408587171,1773905436514,-500.0,0.00013698,2]
[408587172,1773905436524,-500.0,0.00013698,2]
[408587173,1773905436537,-500.0,0.00013698,2]
[408587174,1773905436546,-500.0,0.00013698,2]
[408587175,1773905436555,-530.20751779,0.00013698,2]
[408587176,1773905436565,-500.0,0.00013698,2]
[408587177,1773905436574,-500.0,0.00013698,2]
[408587178,1773905436584,-500.0,0.00013698,2]
[408587179,1773905436593,-500.0,0.00013698,2]
[408587180,1773905436603,-500.0,0.00013698,2]
[408587181,1773905436612,-500.0,0.00013698,2]
[408587182,1773905436621,-338.47316987,0.00013698,2]
[408587183,1773905436630,-500.0,0.00013698,2]
[408587184,1773905436639,-546.27391006,0.00013698,2]
[408587185,1773905436648,-500.0,0.00013698,2]
[408587186,1773905436657,-500.0,0.00013698,2]
[408587187,1773905436667,-500.0,0.00013698,2]
[408587188,1773905436676,-404.05309335,0.00013698,2]
[408587189,1773905436686,-500.0,0.00013698,2]
[408587190,1773905436695,-500.0,0.00013698,2]
[408587191,1773905436705,-500.0,0.00013698,2]
[408587192,1773905436714,-500.0,0.00013698,2]
[408587193,1773905436724,-502.28440551,0.00013698,2]
[408587194,1773905436734,-500.0,0.00013698,2]
[408587195,1773905436743,-500.0,0.00013698,2]
[408587196,1773905436752,-519.55408255,0.00013698,2]
[408587197,1773905436762,-500.0,0.00013698,2]
[408587198,1773905436771,-500.0,0.00013698,2]
[408587199,1773905436780,-500.0,0.00013698,2]
[408587200,1773905436790,-500.0,0.00013698,2]
[408587201,1773905436799,-500.0,0.00013698,2]
[408587202,1773905436809,-500.0,0.00013698,2]
[408587203,1773905436818,-500.0,0.00013698,2]
[408587204,1773905436828,-500.0,0.00013698,2]
[408587205,1773905436837,-500.0,0.00013698,2]
[408587206,1773905436846,-500.0,0.00013698,2]
[408587207,1773905436856,-500.0,0.00013698,2]
[408587208,1773905436865,-500.0,0.00013698,2]
[408587209,1773905436874,-500.0,0.00013698,2]
[408587210,1773905436884,-500.0,0.00013698,2]
[408587211,1773905436894,-500.0,0.00013698,2]
[408587212,1773905436903,-316.11900434,0.00013698,2]
[408587213,1773905436913,-500.0,0.00013698,2]
[408587214,1773905436923,-500.0,0.00013698,2]
[408587215,1773905436932,-500.0,0.00013698,2]
[408587216,1773905436942,-500.0,0.00013698,2]
[408587217,1773905436951,-500.0,0.00013698,2]
[408587218,1773905436960,-500.0,0.00013698,2]
[408587219,1773905436969,-500.0,0.00013698,2]
[408587220,1773905436978,-500.0,0.00013698,2]
[408587221,1773905436987,-500.0,0.00013698,2]
[408587222,1773905436997,-548.16396228,0.00013698,2]
[408587223,1773905437007,-500.0,0.00013698,2]
[408587224,1773905437016,-500.0,0.00013698,2]
[408587225,1773905437025,-500.0,0.00013698,2]
[408587226,1773905437034,-500.0,0.00013698,2]
[408587227,1773905437044,-500.79338971,0.00013698,2]
[408587228,1773905437053,-500.0,0.00013698,2]
[408587229,1773905437062,-500.0,0.00013698,2]
[408587230,1773905437072,-500.0,0.00013698,2]
[408587231,1773905437082,-505.19692822,0.00013698,2]
[408587232,1773905437092,-500.0,0.00013698,2]
[408587233,1773905437103,-500.0,0.00013698,2]
[408587234,1773905437113,-500.0,0.00013698,2]
[408587235,1773905437123,-507.21704968,0.00013698,2]
[408587236,1773905437133,-500.0,0.00013698,2]
[408587237,1773905437143,-500.0,0.00013698,2]
[408587238,1773905437154,-500.0,0.00013698,2]
[408587239,1773905437164,-500.0,0.00013698,2]
[408587240,1773905437174,-500.0,0.00013698,2]
[408587241,1773905437183,-500.0,0.00013698,2]
[408587242,1773905437192,-500.0,0.00013698,2]
[408587243,1773905437202,-507.46942592,0.00013698,2]
[408587244,1773905437211,-500.0,0.00013698,2]
[408587245,1773905437221,-500.0,0.00013698,2]
[408587246,1773905437231,-500.0,0.00013698,2]
[408587247,1773905437240,-308.11684657,0.00013698,2]
[408587248,1773905437249,-500.0,0.00013698,2]
[408587249,1773905437259,-500.0,0.00013698,2]
[408587250,1773905437268,-500.0,0.00013698,2]
[408587251,1773905437278,-500.0,0.00013698,2]
[408587252,1773905437287,-500.0,0.00013698,2]
[408587253,1773905437297,-500.0,0.00013698,2]
[408587254,1773905437306,-500.0,0.00013698,2]
[408587255,1773905437315,-500.0,0.00013698,2]
[408587256,1773905437324,-500.0,0.00013698,2]
[408587257,1773905437333,-500.0,0.00013698,2]
[408587258,1773905437343,-515.1515975,0.00013698,2]
[408587259,1773905437352,-500.0,0.00013698,2]
[408587260,1773905437361,-500.0,0.00013698,2]
[408587261,1773905437371,-500.0,0.00013698,2]
[408587262,1773905437381,-501.79858998,0.00013698,2]
[408587263,1773905437390,-500.0,0.00013698,2]
[408587265,1773905437399,-500.0,0.00013698,2]
[408587266,1773905437409,-500.0,0.00013698,2]
[408587268,1773905437418,-500.0,0.00013698,2]
[408587270,1773905437428,-500.0,0.00013698,2]
[408587271,1773905437438,-292.25237575,0.00013698,2]